[Event "17th Memorial Lezcano Montalvo 2025"]
[Site "Gran Canaria"]
[Date "2025.04.18"]
[Round "7.32"]
[White "Juan Miguel, Javier"]
[Black "Torres Rebolledo, Marcos"]
[Result "0-1"]
[Annotator "RC"]
[ECO "D04"]
[WhiteElo "1803"]
[BlackElo "2010"]
[PlyCount "114"]
[EventDate "2025.04.13"]
[EventType "swiss"]
[EventCountry "ESP"]
[SourceTitle "playchess.com"]
[Source "ChessBase"]
[SourceQuality "1"]
[TimeControl "5400+30"]

1. d4 {[%emt 0:00:03]} Nf6 {[%emt 0:00:07]} 2. e3 {[%emt 0:00:15]} d5 {[%emt 0:00:07]} 3. Bd3 {[%emt 0:00:13]} c5 {[%emt 0:00:09]} 4. b3 {[%emt 0:00:38]} Nc6 {[%emt 0:01:45]} 5. Bb2 {[%emt 0:01:55]} cxd4 {[%emt 0:00:41]} 6. exd4 {[%emt 0:00:13]} Bg4 {[%emt 0:03:35]} 7. Nf3 {[%emt 0:03:21]} Qa5+ {[%emt 0:01:54]} 8. Nbd2 {[%emt 0:06:28]} Nb4 {[%emt 0:01:28]} 9. Qe2 {[%emt 0:02:34]} Nxd3+ {[%emt 0:03:46]} 10. Qxd3 {[%emt 0:00:54]} e6 {[%emt 0:04:37]} 11. O-O {[%emt 0:01:05]} Bf5 {[%emt 0:01:14]} 12. Qe2 {[%emt 0:06:02]} Bxc2 {[%emt 0:04:06]} 13. Rac1 {[%emt 0:02:10]} Be4 {[%emt 0:03:24]} 14. a3 {[%emt 0:03:54]} Bd6 {[%emt 0:04:39]} 15. b4 {[%emt 0:00:51]} Qb6 {[%emt 0:01:49]} 16. Ne5 {[%emt 0:04:20]} O-O {[%emt 0:06:07]} 17. Nxe4 {[%emt 0:04:18]} dxe4 {[%emt 0:14:40]} 18. Rc2 {[%emt 0:08:29]} Rfc8 {[%emt 0:03:11]} 19. Rfc1 {[%emt 0:02:41]} Rxc2 {[%emt 0:05:19]} 20. Rxc2 {[%emt 0:05:02]} Qd8 {[%emt 0:01:36]} 21. h3 {[%emt 0:04:09]} Rc8 {[%emt 0:04:05]} 22. Nc4 {[%emt 0:03:04]} Bc7 {[%emt 0:05:27]} 23. a4 {[%emt 0:03:15]} a6 {[%emt 0:03:14]} 24. Bc3 {[%emt 0:04:08]} h6 {[%emt 0:03:00]} 25. Kh1 {[%emt 0:06:29]} Qd5 {[%emt 0:04:21]} 26. Bb2 {[%emt 0:02:57]} Nd7 {[%emt 0:01:18]} 27. a5 {[%emt 0:02:00]} Rd8 {[%emt 0:02:58]} 28. Rd2 {[%emt 0:08:45]} f5 {[%emt 0:01:25]} 29. Bc3 {[%emt 0:02:09]} Nf6 {[%emt 0:00:49]} 30. Ne5 {[%emt 0:00:47]} Rc8 {[%emt 0:01:36]} 31. Qe3 {[%emt 0:00:52]} Qb5 {[%emt 0:01:05]} 32. Qe2 {[%emt 0:05:44]} Qxe2 {[%emt 0:01:38]} 33. Rxe2 {[%emt 0:00:07]} Bxe5 {[%emt 0:01:44]} 34. dxe5 {[%emt 0:00:08]} Nd5 {[%emt 0:01:11]} 35. Bd4 {[%emt 0:01:51]} Rc4 {[%emt 0:00:08]} 36. Bc5 {[%emt 0:01:55]} Nxb4 {[%emt 0:00:07]} 37. Bb6 {[%emt 0:00:45]} Nd5 {[%emt 0:01:46]} 38. Rb2 {[%emt 0:01:36]} Rb4 {[%emt 0:03:55]} 39. Rxb4 {[%emt 0:00:36]} Nxb4 {[%emt 0:00:02]} 40. Bd4 {[%emt 0:00:30]} Kf7 {[%emt 0:01:11]} 41. Kh2 {[%emt 0:00:52]} f4 {[%emt 0:01:15]} 42. g3 {[%emt 0:00:52]} f3 {[%emt 0:01:12]} 43. g4 {[%emt 0:00:05]} Kg6 {[%emt 0:00:25]} 44. Kg3 {[%emt 0:00:24]} Nd5 {[%emt 0:00:21]} 45. Ba1 {[%emt 0:00:45]} h5 {[%emt 0:00:36]} 46. Bb2 {[%emt 0:00:19]} h4+ {[%emt 0:01:01]} 47. Kh2 {[%emt 0:01:18]} e3 {[%emt 0:02:06]} 48. fxe3 {[%emt 0:00:22]} Nxe3 {[%emt 0:00:06]} 49. Kg1 {[%emt 0:00:18]} f2+ {[%emt 0:00:06]} 50. Kxf2 {[%emt 0:00:10]} Nd1+ {[%emt 0:00:05]} 51. Kf3 {[%emt 0:00:00]} Nxb2 {[%emt 0:00:00]} 52. Ke4 {[%emt 0:00:00]} Nc4 {[%emt 0:00:00]} 53. Kd4 {[%emt 0:00:00]} Nxa5 {[%emt 0:00:00]} 54. Kc5 {[%emt 0:00:01]} Nc6 {[%emt 0:00:00]} 55. Kb6 {[%emt 0:00:23]} Nxe5 {[%emt 0:00:00]} 56. Ka5 {[%emt 0:00:04]} Nxg4 {[%emt 0:00:00]} 57. hxg4 {[%emt 0:00:03]} h3 {[%emt 0:00:00]} 0-1

[Event "17th Memorial Lezcano Montalvo 2025"]
[Site "Gran Canaria"]
[Date "2025.04.18"]
[Round "7.33"]
[White "Macias Reyes, Jose Luis"]
[Black "Gonzalez Martinez, Miguel Angel"]
[Result "0-1"]
[Annotator "ChessBase"]
[ECO "A48"]
[WhiteElo "1674"]
[BlackElo "2134"]
[PlyCount "90"]
[EventDate "2025.04.13"]
[EventType "swiss"]
[EventCountry "ESP"]
[SourceTitle "playchess.com"]
[Source "ChessBase"]
[SourceQuality "1"]
[TimeControl "5400+30"]

1. d4 {[%emt 0:00:04]} d6 {[%emt 0:00:06]} 2. Bf4 {[%emt 0:00:08]} Nf6 {[%emt 0:00:14]} 3. e3 {[%emt 0:00:13]} Nbd7 {[%emt 0:00:12]} 4. h3 {[%emt 0:00:26]} g6 {[%emt 0:02:19]} 5. Nf3 {[%emt 0:00:21]} c6 {[%emt 0:01:05]} 6. Be2 {[%emt 0:00:29]} Bg7 {[%emt 0:00:17]} 7. O-O {[%emt 0:00:24]} O-O {[%emt 0:00:26]} 8. c4 {[%emt 0:01:07]} Re8 {[%emt 0:02:15]} 9. Bh2 {[%emt 0:02:42]} Qb6 {[%emt 0:08:17]} 10. Qb3 {[%emt 0:06:36]} Ne4 {[%emt 0:06:15]} 11. Nc3 {[%emt 0:03:01]} Nxc3 {[%emt 0:02:18]} 12. bxc3 {[%emt 0:03:50]} c5 {[%emt 0:04:03]} 13. Rfe1 {[%emt 0:04:22]} e5 {[%emt 0:02:26]} 14. Bf1 {[%emt 0:04:11]} Qc6 {[%emt 0:05:31]} 15. a4 {[%emt 0:03:26]} h6 {[%emt 0:04:47]} 16. a5 {[%emt 0:02:06]} Nf8 {[%emt 0:01:15]} 17. d5 {[%emt 0:07:22]} Qc7 {[%emt 0:01:09]} 18. e4 {[%emt 0:01:42]} f5 {[%emt 0:03:23]} 19. Nd2 {[%emt 0:05:24]} f4 {[%emt 0:09:41]} 20. f3 {[%emt 0:03:28]} Rb8 {[%emt 0:00:25]} 21. Reb1 {[%emt 0:04:01]} h5 {[%emt 0:01:47]} 22. Be2 {[%emt 0:06:09]} Qe7 {[%emt 0:00:32]} 23. Kh1 {[%emt 0:40:28]} Nh7 {[%emt 0:11:27]} 24. Rg1 Kf7 {[%emt 0:02:36]} 25. Nb1 {[%emt 0:00:00]} Rh8 {[%emt 0:03:24]} 26. Na3 {[%emt 0:00:00]} g5 {[%emt 0:27:20]} 27. Qd1 {[%emt 0:02:00]} Nf6 {[%emt 0:00:30]} 28. Ra2 {[%emt 0:00:30]} g4 {[%emt 0:00:00]} 29. fxg4 {[%emt 0:00:30]} Nxe4 {[%emt 0:01:00]} 30. Qe1 {[%emt 0:00:30]} hxg4 {[%emt 0:00:00]} 31. Bxg4 {[%emt 0:00:30]} Nf6 {[%emt 0:01:00]} 32. Bxc8 {[%emt 0:00:00]} Rbxc8 {[%emt 0:00:00]} 33. Re2 {[%emt 0:01:00]} Qd7 {[%emt 0:01:00]} 34. Qd1 {[%emt 0:00:00]} f3 {[%emt 0:00:30]} 35. gxf3 {[%emt 0:01:00]} Qxh3 {[%emt 0:00:00]} 36. Reg2 Nh5 {[%emt 0:00:00]} 37. Qe1 Rh7 {[%emt 0:01:30]} 38. Qf2 {[%emt 0:01:30]} Nf4 {[%emt 0:00:30]} 39. Rg4 {[%emt 0:00:00]} Rch8 {[%emt 0:00:30]} 40. Rxf4+ {[%emt 0:00:00]} exf4 {[%emt 0:00:30]} 41. Rg2 {[%emt 0:00:00]} a6 {[%emt 0:00:30]} 42. Qb2 {[%emt 0:02:00]} Kf8 {[%emt 0:00:00]} 43. Kg1 {[%emt 0:00:00]} Qxf3 {[%emt 0:00:00]} 44. Qb4 {[%emt 0:01:00]} b6 45. Qxb6 {[%emt 0:00:00]} Bd4+ {[%emt 0:00:00]} 0-1

[Event "17th Memorial Lezcano Montalvo 2025"]
[Site "Gran Canaria"]
[Date "2025.04.18"]
[Round "7.34"]
[White "Pace, Gabriele"]
[Black "Marrero Rodriguez, Jorge"]
[Result "0-1"]
[Annotator "ChessBase"]
[ECO "D00"]
[WhiteElo "1895"]
[BlackElo "2251"]
[PlyCount "62"]
[EventDate "2025.04.13"]
[EventType "swiss"]
[EventCountry "ESP"]
[SourceTitle "playchess.com"]
[Source "ChessBase"]
[SourceQuality "1"]
[TimeControl "5400+30"]

1. d4 {[%emt 0:00:01]} d5 {[%emt 0:00:04]} 2. Bf4 {[%emt 0:00:03]} c5 {[%emt 0:00:10]} 3. e3 {[%emt 0:01:13]} Nc6 {[%emt 0:00:10]} 4. c3 {[%emt 0:00:12]} Nf6 {[%emt 0:00:16]} 5. Bd3 {[%emt 0:00:25]} Qb6 {[%emt 0:00:20]} 6. Qb3 {[%emt 0:00:22]} c4 {[%emt 0:00:20]} 7. Qxb6 {[%emt 0:00:02]} axb6 {[%emt 0:00:04]} 8. Bc2 {[%emt 0:00:20]} b5 {[%emt 0:00:48]} 9. Na3 {[%emt 0:02:07]} b4 {[%emt 0:02:33]} 10. Nb5 {[%emt 0:11:16]} Ra5 {[%emt 0:00:40]} 11. a4 {[%emt 0:00:52]} b3 {[%emt 0:01:04]} 12. Bd1 {[%emt 0:07:38]} Bd7 {[%emt 0:01:23]} 13. Bc7 {[%emt 0:02:15]} Ra6 {[%emt 0:00:18]} 14. Be5 {[%emt 0:04:39]} Nxe5 {[%emt 0:01:35]} 15. Nc7+ {[%emt 0:00:15]} Kd8 {[%emt 0:00:05]} 16. dxe5 {[%emt 0:00:33]} Kxc7 {[%emt 0:00:06]} 17. exf6 {[%emt 0:00:24]} gxf6 {[%emt 0:00:37]} 18. Bh5 {[%emt 0:01:20]} Be6 {[%emt 0:03:01]} 19. Nf3 {[%emt 0:02:08]} Bh6 {[%emt 0:00:23]} 20. Nd4 {[%emt 0:03:36]} Rha8 {[%emt 0:00:33]} 21. O-O {[%emt 0:08:13]} f5 {[%emt 0:04:20]} 22. f4 {[%emt 0:01:21]} Rxa4 {[%emt 0:01:59]} 23. Rxa4 {[%emt 0:09:03]} Rxa4 {[%emt 0:00:05]} 24. Nxe6+ {[%emt 0:08:39]} fxe6 {[%emt 0:00:10]} 25. Be8 {[%emt 0:00:27]} Ra2 {[%emt 0:00:24]} 26. Rb1 {[%emt 0:00:05]} Bg7 {[%emt 0:03:19]} 27. Kf1 {[%emt 0:03:18]} Kd8 {[%emt 0:00:03]} 28. Bf7 {[%emt 0:01:26]} Kd7 {[%emt 0:00:04]} 29. Ke1 {[%emt 0:00:49]} Rxb2 {[%emt 0:00:15]} 30. Rxb2 {[%emt 0:00:35]} Bxc3+ {[%emt 0:00:02]} 31. Kd1 {[%emt 0:00:56]} Bxb2 {[%emt 0:00:04]} 0-1

[Event "17th Memorial Lezcano Montalvo 2025"]
[Site "Gran Canaria"]
[Date "2025.04.18"]
[Round "7.35"]
[White "Rodriguez Avila, Alvaro"]
[Black "Almeida Cubas, Mirella"]
[Result "1-0"]
[Annotator "RC"]
[ECO "B27"]
[WhiteElo "2212"]
[BlackElo "1824"]
[PlyCount "124"]
[EventDate "2025.04.13"]
[EventType "swiss"]
[EventCountry "ESP"]
[SourceTitle "playchess.com"]
[Source "ChessBase"]
[SourceQuality "1"]
[TimeControl "5400+30"]

1. e4 {[%emt 0:00:03]} c5 {[%emt 0:00:23]} 2. Nf3 {[%emt 0:00:16]} g6 {[%emt 0:01:01]} 3. d4 {[%emt 0:04:22]} cxd4 {[%emt 0:01:45]} 4. Qxd4 {[%emt 0:00:11]} Nf6 {[%emt 0:01:15]} 5. e5 {[%emt 0:00:08]} Nc6 {[%emt 1:28:36]} 6. Qa4 Nd5 {[%emt 0:00:00]} 7. Qb3 {[%emt 1:29:00]} Nb6 {[%emt 0:00:00]} 8. a4 {[%emt 0:00:00]} e6 {[%emt 0:00:00]} 9. Bg5 {[%emt 0:00:00]} Be7 {[%emt 0:00:00]} 10. Bxe7 {[%emt 0:00:00]} Qxe7 {[%emt 0:00:00]} 11. Nc3 {[%emt 0:00:00]} d6 {[%emt 0:00:00]} 12. exd6 {[%emt 0:00:00]} Qxd6 {[%emt 0:00:00]} 13. Rd1 {[%emt 0:00:00]} Qe7 {[%emt 0:00:00]} 14. Bb5 {[%emt 0:00:00]} O-O {[%emt 0:00:00]} 15. O-O {[%emt 0:00:00]} Na5 {[%emt 0:00:00]} 16. Qa2 {[%emt 0:00:00]} a6 {[%emt 0:00:00]} 17. Bd3 {[%emt 0:00:00]} Bd7 {[%emt 0:00:00]} 18. Ne5 {[%emt 0:00:00]} Nc6 {[%emt 0:00:00]} 19. Nxd7 {[%emt 0:00:00]} Nxd7 {[%emt 0:00:00]} 20. Ne4 Nc5 21. Qa3 {[%emt 0:00:00]} Nxd3 {[%emt 0:00:00]} 22. Qxe7 {[%emt 0:00:00]} Nxe7 {[%emt 0:00:00]} 23. Rxd3 {[%emt 0:00:00]} Rfd8 {[%emt 0:00:00]} 24. Rfd1 {[%emt 0:00:00]} Nc6 {[%emt 0:09:30]} 25. f4 {[%emt 0:09:00]} Rxd3 {[%emt 0:00:00]} 26. Rxd3 Rd8 {[%emt 0:00:00]} 27. Nf6+ {[%emt 0:00:00]} Kg7 28. Rxd8 {[%emt 0:00:00]} Nxd8 {[%emt 0:02:00]} 29. Nd7 {[%emt 0:00:00]} b5 {[%emt 0:00:00]} 30. axb5 {[%emt 0:00:00]} axb5 {[%emt 0:00:00]} 31. Kf2 {[%emt 0:00:00]} Nc6 {[%emt 0:00:00]} 32. c3 {[%emt 0:00:00]} f6 {[%emt 0:00:00]} 33. Ke3 {[%emt 0:00:00]} Kf7 {[%emt 0:00:00]} 34. Nc5 {[%emt 0:00:00]} Ke7 {[%emt 0:03:00]} 35. Ne4 {[%emt 0:05:00]} e5 {[%emt 0:00:00]} 36. fxe5 {[%emt 0:00:00]} fxe5 {[%emt 0:00:00]} 37. Ng5 {[%emt 0:00:00]} h6 {[%emt 0:00:00]} 38. Nf3 {[%emt 0:00:00]} Ke6 {[%emt 0:02:00]} 39. Ke4 {[%emt 0:02:00]} Kd6 {[%emt 0:00:00]} 40. Nh4 {[%emt 0:00:00]} Ne7 {[%emt 0:00:00]} 41. Nf3 {[%emt 0:00:00]} Nc6 {[%emt 0:00:00]} 42. b3 {[%emt 0:00:00]} Ke6 {[%emt 0:00:00]} 43. b4 {[%emt 0:00:00]} Kd6 44. Nd2 Ke6 {[%emt 0:03:00]} 45. Nb1 {[%emt 0:03:00]} Kd6 {[%emt 0:00:00]} 46. Na3 {[%emt 0:00:00]} Na7 {[%emt 0:01:00]} 47. c4 {[%emt 0:00:00]} bxc4 {[%emt 0:00:00]} 48. Nxc4+ {[%emt 0:00:00]} Ke6 49. Nxe5 g5 {[%emt 0:00:00]} 50. Nf3 Nc8 {[%emt 0:02:00]} 51. Nd4+ {[%emt 0:03:00]} Kf6 {[%emt 0:00:00]} 52. b5 {[%emt 0:00:00]} Nb6 {[%emt 0:00:00]} 53. Nc2 {[%emt 0:00:00]} h5 {[%emt 0:00:00]} 54. Ne3 {[%emt 0:00:00]} Ke6 {[%emt 0:02:00]} 55. Kd4 {[%emt 0:00:00]} Nd7 {[%emt 0:00:30]} 56. Nc4 {[%emt 0:02:30]} Kf5 {[%emt 0:00:00]} 57. b6 {[%emt 0:00:00]} Kf4 {[%emt 0:00:00]} 58. b7 {[%emt 0:00:00]} h4 {[%emt 0:00:00]} 59. Ne5 {[%emt 0:00:00]} Nb8 {[%emt 0:00:00]} 60. Nd3+ {[%emt 0:00:00]} Kg4 {[%emt 0:00:00]} 61. Ke4 {[%emt 0:00:00]} Kh5 {[%emt 0:00:15]} 62. Kf5 {[%emt 0:00:00]} Kh6 {[%emt 0:01:16]} 1-0

[Event "17th Memorial Lezcano Montalvo 2025"]
[Site "Gran Canaria"]
[Date "2025.04.18"]
[Round "7.36"]
[White "Sanchez Montesdeoca, Isaac"]
[Black "Paquico Rodriguez, Ivan"]
[Result "0-1"]
[Annotator "ChessBase"]
[ECO "B06"]
[WhiteElo "1807"]
[BlackElo "2202"]
[PlyCount "96"]
[EventDate "2025.04.13"]
[EventType "swiss"]
[EventCountry "ESP"]
[SourceTitle "playchess.com"]
[Source "ChessBase"]
[SourceQuality "1"]
[TimeControl "5400+30"]

1. e4 {[%emt 0:00:35]} d6 {[%emt 0:00:47]} 2. d4 {[%emt 0:00:24]} g6 {[%emt 0:00:07]} 3. Nc3 {[%emt 0:01:24]} Bg7 {[%emt 0:00:21]} 4. Be3 {[%emt 0:00:24]} a6 {[%emt 0:00:13]} 5. Bd3 {[%emt 0:03:55]} b5 {[%emt 0:00:16]} 6. Nf3 {[%emt 0:03:15]} Bb7 {[%emt 0:00:09]} 7. Qd2 {[%emt 0:00:56]} Nd7 {[%emt 0:01:37]} 8. O-O-O {[%emt 0:00:27]} c5 {[%emt 0:04:06]} 9. Nd5 {[%emt 0:06:04]} c4 {[%emt 0:04:33]} 10. Be2 {[%emt 0:04:24]} Bxd5 {[%emt 0:09:49]} 11. exd5 {[%emt 0:00:02]} Nb6 {[%emt 0:00:21]} 12. Qa5 {[%emt 0:05:16]} Nxd5 {[%emt 0:02:07]} 13. Qxd8+ {[%emt 0:00:05]} Rxd8 {[%emt 0:00:19]} 14. Bd2 {[%emt 0:00:31]} Ngf6 {[%emt 0:00:32]} 15. Kb1 {[%emt 0:02:24]} c3 {[%emt 0:01:41]} 16. Be1 {[%emt 0:01:41]} Rc8 {[%emt 0:03:35]} 17. g3 {[%emt 0:00:57]} cxb2 {[%emt 0:00:51]} 18. Kxb2 {[%emt 0:00:30]} Ne4 {[%emt 0:00:40]} 19. Bd3 {[%emt 0:02:29]} Nc5 {[%emt 0:01:18]} 20. c3 {[%emt 0:01:57]} Na4+ {[%emt 0:01:49]} 21. Kb3 {[%emt 0:02:16]} Naxc3 {[%emt 0:08:44]} 22. Rc1 {[%emt 0:00:23]} b4 {[%emt 0:00:07]} 23. Bc4 {[%emt 0:05:24]} O-O {[%emt 0:05:32]} 24. Bd2 {[%emt 0:03:27]} a5 {[%emt 0:01:37]} 25. Bxd5 {[%emt 0:03:57]} Nxd5 {[%emt 0:01:05]} 26. Rxc8 {[%emt 0:00:42]} Rxc8 {[%emt 0:00:04]} 27. Rc1 {[%emt 0:00:06]} Ra8 {[%emt 0:00:34]} 28. a4 {[%emt 0:05:52]} h6 {[%emt 0:03:41]} 29. Rc6 {[%emt 0:00:13]} g5 {[%emt 0:01:08]} 30. h3 {[%emt 0:00:20]} Nf6 {[%emt 0:00:20]} 31. Be3 {[%emt 0:00:55]} Ne4 {[%emt 0:00:42]} 32. Ne1 {[%emt 0:00:16]} Nc3 {[%emt 0:01:10]} 33. Nd3 {[%emt 0:00:48]} Kf8 {[%emt 0:01:08]} 34. Nb2 {[%emt 0:00:07]} Ke8 {[%emt 0:01:22]} 35. Nc4 {[%emt 0:00:56]} Kd7 {[%emt 0:01:35]} 36. Rb6 {[%emt 0:00:32]} Kc7 {[%emt 0:44:30]} 37. d5 {[%emt 0:01:18]} Nxd5 {[%emt 0:00:00]} 38. Rb5 {[%emt 0:00:08]} Nxe3 {[%emt 0:00:00]} 39. fxe3 {[%emt 0:00:21]} e6 {[%emt 0:00:00]} 40. g4 {[%emt 0:02:29]} Bc3 {[%emt 0:00:00]} 41. e4 {[%emt 0:00:21]} Rd8 {[%emt 0:00:00]} 42. Rxa5 {[%emt 0:00:26]} Bd4 {[%emt 0:00:00]} 43. Kc2 {[%emt 0:06:38]} d5 {[%emt 0:00:00]} 44. Nd2 {[%emt 0:01:31]} Bc3 {[%emt 0:00:00]} 45. Nb3 {[%emt 0:01:37]} dxe4 {[%emt 0:00:00]} 46. Rc5+ {[%emt 0:01:05]} Kd6 {[%emt 0:00:00]} 47. Rc4 {[%emt 0:02:04]} Ke5 {[%emt 0:00:00]} 48. Rc7 {[%emt 0:03:18]} e3 {[%emt 0:06:00]} 0-1

[Event "17th Memorial Lezcano Montalvo 2025"]
[Site "Gran Canaria"]
[Date "2025.04.18"]
[Round "7.37"]
[White "Rossello Padron, Carlos"]
[Black "Ramirez Maillo, Cristian"]
[Result "0-1"]
[Annotator "RC"]
[ECO "E94"]
[WhiteElo "1776"]
[BlackElo "2106"]
[PlyCount "123"]
[EventDate "2025.04.13"]
[EventType "swiss"]
[EventCountry "ESP"]
[SourceTitle "playchess.com"]
[Source "ChessBase"]
[SourceQuality "1"]
[TimeControl "5400+30"]

1. c4 {[%emt 0:00:30]} Nf6 {[%emt 0:00:07]} 2. Nf3 {[%emt 0:00:59]} g6 {[%emt 0:00:05]} 3. Nc3 {[%emt 0:01:01]} Bg7 {[%emt 0:00:06]} 4. d4 {[%emt 0:00:27]} O-O {[%emt 0:00:11]} 5. e4 {[%emt 0:01:25]} d6 {[%emt 0:00:04]} 6. Be2 {[%emt 0:00:45]} Nbd7 {[%emt 0:00:13]} 7. O-O {[%emt 0:01:49]} e5 {[%emt 0:00:12]} 8. dxe5 {[%emt 0:02:30]} dxe5 {[%emt 0:00:28]} 9. Qc2 {[%emt 0:00:53]} c6 {[%emt 0:00:16]} 10. b3 {[%emt 0:01:16]} Re8 {[%emt 0:00:33]} 11. Bb2 {[%emt 0:02:35]} a5 {[%emt 0:02:01]} 12. Rad1 {[%emt 0:03:13]} Qc7 {[%emt 0:00:29]} 13. Ba3 {[%emt 0:01:19]} Bf8 {[%emt 0:00:35]} 14. Bxf8 {[%emt 0:02:57]} Nxf8 {[%emt 0:02:37]} 15. Rd2 {[%emt 0:01:16]} Bg4 {[%emt 0:01:26]} 16. Rfd1 {[%emt 0:05:04]} Ne6 {[%emt 0:02:21]} 17. g3 {[%emt 0:00:30]} Bxf3 {[%emt 0:00:30]} 18. Bxf3 {[%emt 0:00:30]} Nd4 {[%emt 1:27:16]} 19. Qd3 {[%emt 0:05:48]} Nd7 {[%emt 0:00:00]} 20. Qe3 {[%emt 0:03:33]} Nc5 {[%emt 0:00:00]} 21. Ne2 {[%emt 0:01:28]} Nce6 {[%emt 0:00:00]} 22. Bg4 {[%emt 0:00:30]} Nxe2+ {[%emt 0:00:00]} 23. Rxe2 {[%emt 0:00:30]} Nd4 {[%emt 0:00:00]} 24. Red2 {[%emt 1:01:42]} c5 {[%emt 0:00:00]} 25. h4 {[%emt 0:00:00]} h5 {[%emt 0:00:00]} 26. Be2 {[%emt 0:00:00]} a4 {[%emt 0:00:00]} 27. Qg5 {[%emt 0:00:00]} Qd8 {[%emt 0:00:00]} 28. Qxd8 {[%emt 0:00:00]} Rexd8 {[%emt 0:00:00]} 29. Kf1 {[%emt 0:00:00]} axb3 {[%emt 0:00:00]} 30. axb3 {[%emt 0:00:00]} Rd6 {[%emt 0:00:00]} 31. Rb1 {[%emt 0:00:00]} Rb6 {[%emt 0:00:00]} 32. Bd1 {[%emt 0:00:00]} Kf8 {[%emt 0:00:00]} 33. f4 {[%emt 0:00:00]} exf4 {[%emt 0:00:00]} 34. gxf4 {[%emt 0:00:00]} Re8 {[%emt 0:00:00]} 35. e5 {[%emt 0:00:00]} f6 {[%emt 0:00:00]} 36. Rf2 {[%emt 0:00:00]} fxe5 {[%emt 0:00:00]} 37. fxe5+ {[%emt 0:00:00]} Kg7 {[%emt 0:00:00]} 38. Rbb2 {[%emt 0:00:00]} Rxe5 {[%emt 0:00:00]} 39. Bc2 {[%emt 0:00:00]} Re3 {[%emt 0:00:00]} 40. b4 {[%emt 0:00:00]} cxb4 {[%emt 0:00:00]} 41. c5 {[%emt 0:00:00]} Rb5 {[%emt 0:00:00]} 42. Ba4 {[%emt 0:00:00]} Rxc5 {[%emt 0:00:00]} 43. Rxb4 {[%emt 0:00:00]} Rc1+ {[%emt 0:00:00]} 44. Kg2 {[%emt 0:00:00]} Nf5 {[%emt 0:13:00]} 45. Rxb7+ {[%emt 0:00:00]} Kh6 {[%emt 0:00:00]} 46. Rb4 {[%emt 0:00:00]} Rg3+ {[%emt 0:00:00]} 47. Kh2 {[%emt 0:00:00]} Rgg1 {[%emt 0:00:00]} 48. Bc6 {[%emt 0:00:00]} Rge1 {[%emt 0:00:00]} 49. Bf3 {[%emt 0:00:00]} Rc3 {[%emt 0:00:00]} 50. Bg2 {[%emt 0:00:00]} Rec1 {[%emt 0:00:00]} 51. Bh3 {[%emt 0:00:00]} Ne3 {[%emt 0:00:00]} 52. Rbf4 {[%emt 0:00:00]} Nd5 {[%emt 0:04:00]} 53. Rf8 {[%emt 0:00:00]} Rc4 {[%emt 0:00:00]} 54. Kg3 {[%emt 0:02:28]} Rg1+ {[%emt 0:00:00]} 55. Kh2 {[%emt 0:00:34]} Rd1 {[%emt 0:00:00]} 56. R2f7 {[%emt 0:01:34]} Rxh4 {[%emt 0:00:00]} 57. Kg3 {[%emt 0:01:41]} Rg1+ {[%emt 0:00:00]} 58. Kf2 {[%emt 0:00:19]} Ra1 {[%emt 0:00:00]} 59. Bg2 {[%emt 0:01:32]} Ra2+ {[%emt 0:00:00]} 60. Kg1 {[%emt 0:01:34]} Rg4 {[%emt 0:00:00]} 61. Rf2 {[%emt 0:00:24]} Ra1+ {[%emt 0:00:00]} 62. Kh2 {[%emt 0:00:33]} 0-1

[Event "17th Memorial Lezcano Montalvo 2025"]
[Site "Gran Canaria"]
[Date "2025.04.18"]
[Round "7.38"]
[White "Cruz Pino, Adrian"]
[Black "Guerra Aleman, Marcial"]
[Result "1-0"]
[Annotator "NA"]
[ECO "A16"]
[WhiteElo "2099"]
[BlackElo "1766"]
[PlyCount "75"]
[EventDate "2025.04.13"]
[EventType "swiss"]
[EventCountry "ESP"]
[SourceTitle "playchess.com"]
[Source "ChessBase"]
[SourceQuality "1"]
[TimeControl "5400+30"]

1. c4 {[%emt 0:00:03]} Nf6 {[%emt 0:00:38]} 2. Nc3 {[%emt 0:00:03]} g6 {[%emt 0:00:10]} 3. e4 {[%emt 0:00:14]} d6 {[%emt 0:00:20]} 4. d3 {[%emt 0:00:34]} Bg7 {[%emt 0:00:12]} 5. f4 {[%emt 0:00:21]} O-O {[%emt 0:00:38]} 6. Nf3 {[%emt 0:00:02]} Bg4 {[%emt 0:00:33]} 7. h3 {[%emt 0:00:05]} Bxf3 {[%emt 0:00:08]} 8. Qxf3 {[%emt 0:00:04]} Nc6 {[%emt 0:06:34]} 9. Be3 {[%emt 0:00:05]} Nd7 {[%emt 0:01:05]} 10. Qf2 {[%emt 0:05:30]} e5 {[%emt 0:08:01]} 11. f5 {[%emt 0:01:13]} Nd4 {[%emt 0:00:30]} 12. g4 {[%emt 0:03:39]} Nf6 {[%emt 0:08:56]} 13. g5 {[%emt 0:03:30]} Nh5 {[%emt 0:05:35]} 14. f6 {[%emt 0:00:36]} Nxf6 {[%emt 0:00:54]} 15. gxf6 {[%emt 0:00:03]} Bxf6 {[%emt 0:00:07]} 16. O-O-O {[%emt 0:00:29]} Bh4 {[%emt 0:00:04]} 17. Qg2 {[%emt 0:00:12]} Ne6 {[%emt 0:00:38]} 18. Bh6 {[%emt 0:01:29]} Bg5+ {[%emt 0:02:00]} 19. Bxg5 {[%emt 0:00:06]} Qxg5+ {[%emt 0:00:05]} 20. Qxg5 {[%emt 0:00:03]} Nxg5 {[%emt 0:00:08]} 21. h4 {[%emt 0:00:43]} Ne6 {[%emt 0:01:13]} 22. Bh3 {[%emt 0:00:04]} Nf4 {[%emt 0:00:09]} 23. Nd5 {[%emt 0:00:08]} Nxd5 {[%emt 0:04:15]} 24. cxd5 {[%emt 0:00:05]} f5 {[%emt 0:00:08]} 25. exf5 {[%emt 0:01:37]} gxf5 {[%emt 0:00:11]} 26. Rhg1+ {[%emt 0:00:06]} Kh8 {[%emt 0:00:35]} 27. Rg5 {[%emt 0:00:08]} f4 {[%emt 0:00:38]} 28. Kd2 {[%emt 0:00:06]} Rg8 {[%emt 0:01:50]} 29. Rdg1 {[%emt 0:00:07]} Rxg5 {[%emt 0:00:10]} 30. Rxg5 {[%emt 0:00:06]} Rg8 {[%emt 0:00:05]} 31. Ke2 {[%emt 0:00:37]} Rxg5 {[%emt 0:00:23]} 32. hxg5 {[%emt 0:00:05]} Kg7 {[%emt 0:00:04]} 33. Bf5 {[%emt 0:00:52]} c6 {[%emt 0:00:15]} 34. Be4 {[%emt 0:01:35]} c5 {[%emt 0:00:22]} 35. a4 {[%emt 0:00:24]} b6 {[%emt 0:00:15]} 36. Kf3 {[%emt 0:00:06]} a6 {[%emt 0:01:38]} 37. b3 {[%emt 0:00:11]} h5 {[%emt 0:00:08]} 38. Kg2 {[%emt 0:02:01]} 1-0